Workbook

Sheet Graph. Fahrplan
B1: A | C1: B | D1: C | E1: D | F1: E | G1: F | H1: G | I1: H | J1: I | K1: J | L1: K | M1: L | N1: M | O1: N
A2: 1 | B2: Tabelle 1 Bahnelemente der Galileischen Monde und abgeleitete Größen | Q2: n | R2: φ1 | S2: φ1 / π | U2: n | V2: φ2 | W2: φ2 / π | X2: n | Y2: φ3 | Z2: φ3 / π
A3: =A2+1 -> 2 | C3: a: große Halbachse T: Umlaufdauer ω: mittlere Winkelgeschwindigkeit | Q3: 0 | R3: =Q3*$N$6+PI() -> 3.141592654 | S3: =R3/PI() -> 1 | U3: 0 | V3: =U3*$N$7 -> 0 | W3: =V3/PI() -> 0 | X3: 0 | Y3: =X3*$N$8 -> 0 | Z3: =Y3/PI() -> 0
A4: =A3+1 -> 3 | C4: Jupitermond | D4: n | E4: an | F4: Tn (d) | G4: Tn / T1 | H4: Ex- | I4: relative | J4: ωn | N4: ωn - ωP | O4: (ω1 - ωP)/ | Q4: =1/8 -> 0.125 | R4: =Q4*$N$10*$N$6+PI() -> 6.283180447 | S4: 1.999998453 | U4: =1/2 -> 0.5 | V4: =U4*$N$10*$N$7 -> 6.283175588 | W4: 1.999996906 | X4: =1 -> 1 | Y4: =$N$10*$N$8 -> 6.283185307 | Z4: 2
A5: 4 | E5: (103 km) | F5: siderisch | H5: zentrizität | I5: Masse | J5: (d-1) | N5: (d-1) | O5: (ωn - ωP) | Q5: =Q4 -> 0.125 | R5: =0 -> 0 | S5: 0 | U5: =U4 -> 0.5 | V5: =0 -> 0 | W5: 0 | X5: =X4 -> 1 | Y5: 0 | Z5: 0
A6: =A4+1 -> 4 | C6: Io | D6: 1 | E6: 421.67 | F6: 1.769137 | G6: =F6/$F$6 -> 1 | H6: 0.0041 | I6: 4.7e-05 | J6: =2*PI()/F6 -> 3.551553841 | K6: ω1 - 2ω2 = | L6: =2*PI()/F6-4*PI()/F7 -> 0.01290935158 | M6: d-1 | N6: =J6-$L$10 -> 3.564463192 | O6: =$N$6/N6 -> 1 | Q6: =Q5+1/4 -> 0.375 | R6: =Q6*$N$10*$N$6+PI()-2*PI() -> 6.283170728 | S6: 1.999995359 | U6: =U5+U4 -> 1 | V6: =U6*$N$10*$N$7-2*PI() -> 6.283165868 | W6: 1.999993812 | X6: =X5+X4 -> 2 | Y6: =X6*$N$10*$N$8-2*PI() -> 6.283185307 | Z6: 2
A7: =A6+1 -> 5 | C7: Europa | D7: =D6+1 -> 2 | E7: 670.9 | F7: 3.551182 | G7: =F7/$F$6 -> 2.007296213 | H7: 0.0101 | I7: 2.5e-05 | J7: =2*PI()/F7 -> 1.769322245 | K7: ω2 - 2ω3 = | L7: =2*PI()/F7-4*PI()/F8 -> 0.01290659459 | M7: d-1 | N7: =J7-$L$10 -> 1.782231596 | O7: =$N$6/N7 -> 2 | Q7: =Q6 -> 0.375 | R7: =0 -> 0 | S7: 0 | U7: =U6 -> 1 | V7: =0 -> 0 | W7: 0 | X7: =X6 -> 2 | Y7: 0 | Z7: 0
A8: =A7+1 -> 6 | C8: Ganymed | D8: =D7+1 -> 3 | E8: 1070 | F8: 7.154554 | G8: =F8/$F$6 -> 4.044092685 | H8: 0.0006 | I8: 7.8e-05 | J8: 0.878207825 | K8: ω1 – 3ω2+ 2ω3 = | L8: =2*PI()/F6-6*PI()/F7+4*PI()/F8 -> 2.75699466e-06 | M8: d-1 | N8: =J8-$L$10 -> 0.8911171766 | O8: =$N$6/N8 -> 3.999993812 | Q8: =Q7+1/4 -> 0.625 | R8: =Q8*$N$10*$N$6+PI()-4*PI() -> 6.283161008 | S8: 1.999992265 | U8: =U7+$U$5 -> 1.5 | V8: =U8*$N$10*$N$7-4*PI() -> 6.283156148 | W8: 1.999990718 | X8: =1/6 -> 0.1666666667 | Y8: =X8*$N$10*$N$8 -> 1.047197551 | Z8: 0.3333333333
A9: =A8+1 -> 7 | C9: Callisto | D9: =D8+1 -> 4 | E9: 1883 | F9: 16.68902 | G9: =F9/$F$6 -> 9.433424319 | H9: 0.007 | I9: 5.7e-05 | J9: 0.3764861752 | K9: 3ω3 – 7ω4 = | L9: =6*PI()/F8-14*PI()/F9 -> -0.0007797512107 | M9: d-1 | N9: Trep = | O9: 2π /(ω3 - ωP) = | Q9: =Q8 -> 0.625 | R9: =0 -> 0 | S9: 0 | U9: =U8 -> 1.5 | V9: =0 -> 0 | W9: 0 | X9: =1/2 -> 0.5 | Y9: =X9*$N$10*$N$8 -> 3.141592654 | Z9: 1
A10: 8 | C10: Äquatorradius Jupiter: 71492 km | F10: 7 T3 / 3 T4 | G10: ≈ | H10: =7*F8/(3*F9) -> 1.000295963 | I10: (bez. auf Jupiter) | J10: ωP = | K10: - (ω1 - 2ω2) = | L10: =- L6 -> -0.01290935158 | M10: d-1 | N10: =2*PI()/$N$8 -> 7.050908087 | O10: d | Q10: =Q9+1/4 -> 0.875 | R10: =Q10*$N$10*$N$6+PI()-6*PI() -> 6.283151288 | S10: 1.999989171 | U10: =U9+$U$5 -> 2 | V10: =U10*$N$10*$N$7-6*PI() -> 6.283146429 | W10: 1.999987625 | X10: =5*1/6 -> 0.8333333333 | Y10: =X10*$N$10*$N$8 -> 5.235987756 | Z10: 1.666666667
A11: 9 | C11: Mondradien: | F11: R1 = | G11: 1821 | H11: km, R2 = | I11: 1565 | J11: km, | K11: R3 = | L11: 2634 | M11: km | Q11: =Q10 -> 0.875 | R11: =0 -> 0 | S11: 0 | U11: =U10 -> 2 | V11: =0 -> 0 | W11: 0 | X11: =7*1/6 -> 1.166666667 | Y11: =X11*$N$10*$N$8-2*PI() -> 1.047197551 | Z11: 0.3333333333
F12: (Bahnelemente aus [3], S. 398 und 532) | Q12: =Q11+1/4 -> 1.125 | R12: =Q12*$N$10*$N$6+PI()-8*PI() -> 6.283141569 | S12: 1.999986078 | U12: 0 | V12: 0 | W12: 0 | Y12: Konj. 1, 3
Q13: =Q12 -> 1.125 | R13: =0 -> 0 | S13: 0 | U13: 1 | V13: 0 | W13: 0
Q14: =Q13+1/4 -> 1.375 | R14: =Q14*$N$10*$N$6+PI()-10*PI() -> 6.283131849 | S14: 1.999982984 | U14: Konj. 2, 3
Q15: =Q14 -> 1.375 | R15: =0 -> 0 | S15: 0
Q16: =Q15+1/4 -> 1.625 | R16: =Q16*$N$10*$N$6+PI()-12*PI() -> 6.283122129 | S16: 1.99997989
Q17: =Q16 -> 1.625 | R17: =0 -> 0 | S17: 0 | V17: drehendes System
Q18: =Q17+1/4 -> 1.875 | R18: =Q18*$N$10*$N$6+PI()-14*PI() -> 6.28311241 | S18: 1.999976796
Q19: =Q18 -> 1.875 | R19: =0 -> 0 | S19: 0
Q20: =1/4 -> 0.25 | R20: =Q20*$N$10*$N$6+PI()-2*PI() -> 3.141582934 | S20: 0.9999969061 | T20: Konj. 1, 2
Q21: =3*1/4 -> 0.75 | R21: =Q21*$N$10*$N$6+PI()-6*PI() -> 3.141563495 | S21: 0.9999907184
Q22: =5*1/4 -> 1.25 | R22: =Q22*$N$10*$N$6+PI()-10*PI() -> 3.141544055 | S22: 0.9999845307
Q24: t/Trep | R24: φ1 | S24: φ1 / π | T24: φ2 | U24: φ2 / π | V24: φ3 | W24: φ3 / π
Q25: 0 | R25: =MOD((Q25*$N$6+PI()),(2*PI())) -> 3.141592654 | S25: =R25/PI() -> 1 | T25: =MOD((Q25*$N$7),(2*PI())) -> 0 | U25: =T25/PI() -> 0 | V25: =Q25*$N$8 -> 0 | W25: =V25/PI() -> 0
Q26: =Q25+0.025 -> 0.025 | R26: =MOD(Q26*$N$10*$N$6+PI(),2*PI()) -> 3.769910212 | S26: 1.199999691 | T26: =MOD(Q26*$N$10*$N$7,2*PI()) -> 0.3141587794 | U26: =T26/PI() -> 0.09999984531 | V26: =MOD(Q26*$N$10*$N$8,2*PI()) -> 0.1570796327 | W26: 0.05
Q27: =Q26+0.025 -> 0.05 | R27: =MOD(Q27*$N$10*$N$6+PI(),2*PI()) -> 4.398227771 | S27: 1.399999381 | T27: =MOD(Q27*$N$10*$N$7,2*PI()) -> 0.6283175588 | U27: 0.1999996906 | V27: =MOD(Q27*$N$10*$N$8,2*PI()) -> 0.3141592654 | W27: =V27/PI() -> 0.1
Q28: 0.075 | R28: =MOD(Q28*$N$10*$N$6+PI(),2*PI()) -> 5.02654533 | S28: 1.599999072 | T28: 0.9424763381 | U28: 0.2999995359 | V28: 0.471238898 | W28: 0.15
Q29: 0.1 | R29: 5.654862889 | S29: 1.799998762 | T29: 1.256635118 | U29: 0.3999993812 | V29: 0.6283185307 | W29: 0.2
Q30: 0.125 | R30: 6.283180447 | S30: 1.999998453 | T30: 1.570793897 | U30: 0.4999992265 | V30: 0.7853981634 | W30: 0.25
Q31: 0.15 | R31: 0.6283126989 | S31: 0.1999981437 | T31: 1.884952676 | U31: 0.5999990718 | V31: 0.9424777961 | W31: 0.3
Q32: 0.175 | R32: 1.256630258 | S32: 0.3999978343 | T32: 2.199111456 | U32: 0.6999989171 | V32: 1.099557429 | W32: 0.35
Q33: 0.2 | R33: 1.884947816 | S33: 0.5999975249 | T33: 2.513270235 | U33: 0.7999987625 | V33: 1.256637061 | W33: 0.4
Q34: 0.225 | R34: 2.513265375 | S34: 0.7999972155 | T34: 2.827429014 | U34: 0.8999986078 | V34: 1.413716694 | W34: 0.45
Q35: 0.25 | R35: 3.141582934 | S35: 0.9999969061 | T35: 3.141587794 | U35: 0.9999984531 | V35: 1.570796327 | W35: 0.5
Q36: 0.275 | R36: 3.769900493 | S36: 1.199996597 | T36: 3.455746573 | U36: 1.099998298 | V36: 1.727875959 | W36: 0.55
Q37: 0.3 | R37: =MOD(Q37*$N$10*$N$6+PI(),2*PI()) -> 4.398218051 | S37: =R37/PI() -> 1.399996287 | T37: 3.769905353 | U37: 1.199998144 | V37: 1.884955592 | W37: 0.6
Q38: 0.325 | R38: 5.02653561 | S38: 1.599995978 | T38: 4.084064132 | U38: 1.299997989 | V38: 2.042035225 | W38: 0.65
Q39: 0.35 | R39: 5.654853169 | S39: 1.799995669 | T39: 4.398222911 | U39: 1.399997834 | V39: 2.199114858 | W39: 0.7
Q40: 0.375 | R40: 6.283170728 | S40: 1.999995359 | T40: 4.712381691 | U40: 1.49999768 | V40: 2.35619449 | W40: 0.75
E41: Linien x = 5 / 6 und y = 5 / 3 | H41: Linien x = 1 / 6 und y = 1 / 3 | K41: Linie x = 1 (Trep) | Q41: 0.4 | R41: 0.6283029793 | S41: 0.1999950498 | T41: 5.02654047 | U41: 1.599997525 | V41: 2.513274123 | W41: 0.8
E42: =5/6 -> 0.8333333333 | F42: 0 | H42: =1/6 -> 0.1666666667 | I42: 0 | K42: 1 | L42: 0 | Q42: 0.425 | R42: 1.256620538 | S42: 0.3999947404 | T42: 5.340699249 | U42: 1.69999737 | V42: 2.670353756 | W42: 0.85
E43: =5/6 -> 0.8333333333 | F43: =5/3 -> 1.666666667 | H43: =1/6 -> 0.1666666667 | I43: =1/3 -> 0.3333333333 | K43: 1 | L43: 2 | Q43: 0.45 | R43: 1.884938097 | S43: 0.599994431 | T43: 5.654858029 | U43: 1.799997216 | V43: 2.827433388 | W43: 0.9
E44: 0 | F44: =5/3 -> 1.666666667 | H44: 0 | I44: =1/3 -> 0.3333333333 | Q44: 0.475 | R44: 2.513255656 | S44: 0.7999941217 | T44: 5.969016808 | U44: 1.899997061 | V44: 2.984513021 | W44: 0.95
Q45: 0.5 | R45: 3.141573214 | S45: 0.9999938123 | T45: 6.283175588 | U45: 1.999996906 | V45: 3.141592654 | W45: 1
Q46: 0.525 | R46: 3.769890773 | S46: 1.199993503 | T46: 0.3141490597 | U46: 0.09999675144 | V46: 3.298672286 | W46: 1.05
Q47: 0.55 | R47: 4.398208332 | S47: 1.399993194 | T47: 0.6283078391 | U47: 0.1999965968 | V47: 3.455751919 | W47: 1.1
Q48: 0.575 | R48: 5.026525891 | S48: 1.599992884 | T48: 0.9424666185 | U48: 0.2999964421 | V48: 3.612831552 | W48: 1.15
Q49: 0.6 | R49: 5.654843449 | S49: 1.799992575 | T49: 1.256625398 | U49: 0.3999962874 | V49: 3.769911184 | W49: 1.2
Q50: 0.625 | R50: 6.283161008 | S50: 1.999992265 | T50: 1.570784177 | U50: 0.4999961327 | V50: 3.926990817 | W50: 1.25
Q51: 0.65 | R51: 0.6282932596 | S51: 0.199991956 | T51: 1.884942957 | U51: 0.599995978 | V51: 4.08407045 | W51: 1.3
Q52: 0.675 | R52: 1.256610818 | S52: 0.3999916466 | T52: 2.199101736 | U52: 0.6999958233 | V52: 4.241150082 | W52: 1.35
Q53: 0.7 | R53: 1.884928377 | S53: 0.5999913372 | T53: 2.513260515 | U53: 0.7999956686 | V53: 4.398229715 | W53: 1.4
Q54: 0.725 | R54: 2.513245936 | S54: 0.7999910278 | T54: 2.827419295 | U54: 0.8999955139 | V54: 4.555309348 | W54: 1.45
Q55: 0.75 | R55: 3.141563495 | S55: 0.9999907184 | T55: 3.141578074 | U55: 0.9999953592 | V55: 4.71238898 | W55: 1.5
Q56: 0.775 | R56: 3.769881053 | S56: 1.199990409 | T56: 3.455736853 | U56: 1.099995205 | V56: 4.869468613 | W56: 1.55
Q57: 0.8 | R57: 4.398198612 | S57: 1.3999901 | T57: 3.769895633 | U57: 1.19999505 | V57: 5.026548246 | W57: 1.6
Q58: 0.825 | R58: 5.026516171 | S58: 1.59998979 | T58: 4.084054412 | U58: 1.299994895 | V58: 5.183627878 | W58: 1.65
Q59: 0.85 | R59: 5.65483373 | S59: 1.799989481 | T59: 4.398213192 | U59: 1.39999474 | V59: 5.340707511 | W59: 1.7
Q60: 0.875 | R60: 6.283151288 | S60: 1.999989171 | T60: 4.712371971 | U60: 1.499994586 | V60: 5.497787144 | W60: 1.75
Q61: 0.9 | R61: 0.6282835399 | S61: 0.1999888621 | T61: 5.02653075 | U61: 1.599994431 | V61: 5.654866776 | W61: 1.8
Q62: 0.925 | R62: 1.256601099 | S62: 0.3999885527 | T62: 5.34068953 | U62: 1.699994276 | V62: 5.811946409 | W62: 1.85
Q63: 0.95 | R63: 1.884918657 | S63: 0.5999882433 | T63: 5.654848309 | U63: 1.799994122 | V63: 5.969026042 | W63: 1.9
Q64: 0.975 | R64: 2.513236216 | S64: 0.7999879339 | T64: 5.969007088 | U64: 1.899993967 | V64: 6.126105675 | W64: 1.95
Q65: 1 | R65: 3.141553775 | S65: 0.9999876245 | T65: 6.283165868 | U65: 1.999993812 | V65: 2.664535259e-15 | W65: 8.481479151e-16
Q66: 1.025 | R66: 3.769871334 | S66: 1.199987315 | T66: 0.3141393401 | U66: 0.09999365758 | V66: 0.1570796327 | W66: 0.05
Q67: 1.05 | R67: 4.398188892 | S67: 1.399987006 | T67: 0.6282981194 | U67: 0.1999935029 | V67: 0.3141592654 | W67: 0.1
Q68: 1.075 | R68: 5.026506451 | S68: 1.599986696 | T68: 0.9424568988 | U68: 0.2999933482 | V68: 0.471238898 | W68: 0.15
Q69: 1.1 | R69: 5.65482401 | S69: 1.799986387 | T69: 1.256615678 | U69: 0.3999931935 | V69: 0.6283185307 | W69: 0.2
Q70: 1.125 | R70: 6.283141569 | S70: 1.999986078 | T70: 1.570774458 | U70: 0.4999930388 | V70: 0.7853981634 | W70: 0.25
Q71: 1.15 | R71: 0.6282738203 | S71: 0.1999857682 | T71: 1.884933237 | U71: 0.5999928841 | V71: 0.9424777961 | W71: 0.3
Q72: 1.175 | R72: 1.256591379 | S72: 0.3999854588 | T72: 2.199092016 | U72: 0.6999927294 | V72: 1.099557429 | W72: 0.35
Q73: 1.2 | R73: 1.884908938 | S73: 0.5999851495 | T73: 2.513250796 | U73: 0.7999925747 | V73: 1.256637061 | W73: 0.4
Q74: 1.225 | R74: 2.513226497 | S74: 0.7999848401 | T74: 2.827409575 | U74: 0.89999242 | V74: 1.413716694 | W74: 0.45
Q75: 1.25 | R75: 3.141544055 | S75: 0.9999845307 | T75: 3.141568354 | U75: 0.9999922653 | V75: 1.570796327 | W75: 0.5
Q76: 1.275 | R76: 3.769861614 | S76: 1.199984221 | T76: 3.455727134 | U76: 1.099992111 | V76: 1.727875959 | W76: 0.55
Q77: 1.3 | R77: 4.398179173 | S77: 1.399983912 | T77: 3.769885913 | U77: 1.199991956 | V77: 1.884955592 | W77: 0.6

Sheet Diagramm 1
B2: Laplace-Resonanz
B3: Diagramm 1 Auslenkungen Galileischer Monde in einem Koordinatensystem, das sich mit Io's Apsidenachse dreht
B5: ω1 = | C5: =2*PI()/1.76914 -> 3.551547818 | D5: d-1 | E5: a1 = | F5: 4.22 | G5: * 105 km | H5: ωp = | I5: -0.0129 | J5: d-1
B6: ω2 = | C6: =2*PI()/3.55118 -> 1.769323241 | D6: d-2 | E6: a2 = | F6: 6.71 | G6: * 105 km
B7: ω3 = | C7: =2*PI()/7.15455 -> 0.878208316 | D7: d-3 | E7: a3 = | F7: 10.7 | G7: * 105 km
B8: t /d | C8: l1 | D8: l2 | E8: l3
B9: 0 | C9: =$F$5*SIN(($C$5-$I$5)*$B9-PI()) -> -5.17012648e-16 | D9: =$F$6*SIN(($C$6-$I$5)*$B9) -> 0 | E9: =$F$7*SIN(($C$7-$I$5)*$B9) -> 0
B10: =B9+0.2 -> 0.2 | C10: =$F$5*SIN(($C$5-$I$5)*$B10-PI()) -> -2.75997445 | D10: =$F$6*SIN(($C$6-$I$5)*$B10) -> 2.341418074 | E10: =$F$7*SIN(($C$7-$I$5)*$B10) -> 1.896892638
B11: =B10+0.2 -> 0.4 | C11: -4.175704435 | D11: 4.388488824 | E11: 3.733693659
B12: 0.6 | C12: -3.557659223 | D12: 5.883868292 | E12: 5.452215087
B13: 0.8 | C13: -1.206857491 | D13: 6.639567434 | E13: 6.998015922
B14: 1 | C14: 1.731743705 | D14: 6.560584838 | E14: 8.322126776
B15: 1.2 | C15: 3.826899813 | D15: 5.656849667 | E15: 9.382601172
B16: 1.4 | C16: 4.058165879 | D16: 4.041973423 | E16: 10.14584437
B17: 1.6 | C17: 2.312903856 | D17: 1.918967481 | E17: 10.5876776
B18: 1.8 | C18: -0.5588570768 | D18: -0.4452781387 | E18: 10.69410404
B19: 2 | C19: -3.158426891 | D19: -2.753546388 | E19: 10.46175221
B20: 2.2 | C20: -4.219686135 | D20: -4.715657315 | E20: 9.897982784
B21: 2.4 | C21: -3.225748913 | D21: -6.084947538 | E21: 9.020655393
B22: 2.6 | C22: -0.6607119572 | D22: -6.689279106 | E22: 7.857562873
B23: 2.8 | C23: 2.226124497 | D23: -6.45267952 | E23: 6.445550803
B24: 3 | C24: 4.028727894 | D24: -5.404892489 | E24: 4.829350282
B25: 3.2 | C25: 3.869140961 | D25: -3.677638745 | E25: 3.060160888
B26: 3.4 | C26: 1.825090451 | D26: -1.488057008 | E26: 1.194028729
B27: 3.6 | C27: -1.107869642 | D27: 0.8885932426 | E27: -0.7099290381
B28: 3.8 | C28: -3.501242264 | D28: 3.153535531 | E28: -2.59139698
B29: 4 | C29: -4.189336223 | D29: 5.022036553 | E29: -4.390772118
B30: 4.2 | C30: -2.837015629 | D30: 6.259200936 | E30: -6.051052089
B31: 4.4 | C31: -0.1029276936 | D31: 6.709500699 | E31: -7.519640925
B32: 4.6 | C32: 2.681291135 | D32: 6.316327186 | E32: -8.750015233
B33: 4.8 | C33: 4.159588175 | D33: 5.129107524 | E33: -9.703198015
B34: 5 | C34: 3.611959437 | D34: 3.297090981 | E34: -10.34899342
B35: 5.2 | C35: 1.305127281 | D35: 1.050586348 | E35: -10.6669433 | G35: t
B36: 5.4 | C36: -1.637366601 | D36: -1.327990931 | E36: -10.64697534 | G36: 7.051 | H36: -10
B37: 5.6 | C37: -3.782381727 | D37: -3.539622127 | E37: -10.2897221 | G37: 7.051 | H37: 10
B38: 5.8 | C38: -4.085189326 | D38: -5.306275849 | E38: -9.606500991 | G38: =2*G36 -> 14.102 | H38: -10
B39: 6 | C39: -2.398307078 | D39: -6.40586028 | E39: -8.618955768 | G39: =2*G37 -> 14.102 | H39: 10
B40: 6.2 | C40: 0.4566696863 | D40: -6.700143065 | E40: -7.358370848
B41: 6.4 | C41: 3.08922566 | D41: -6.152128953 | E41: -5.864680272
B42: 6.6 | C42: 4.217175496 | D42: -4.830710589 | E42: -4.185202628
B43: 6.8 | C43: 3.291151672 | D43: -2.902007798 | E43: -2.373142049
B44: 7 | C44: 0.7621737255 | D44: -0.6084841166 | E44: -0.4859027589
B45: 7.2 | C45: -2.138020633 | D45: 1.761534094 | E45: 1.416729433
B46: 7.4 | C46: -3.996892886 | D46: 3.910104092 | E46: 3.274481087
B47: 7.6 | C47: -3.909080037 | D47: 5.567122117 | E47: 5.028500532
B48: 7.8 | C48: -1.9173513 | D48: 6.524279013 | E48: 6.623222227
B49: 8 | C49: 1.00822263 | D49: 6.661247457 | E49: 8.008127021
B50: 8.2 | C50: 3.442742127 | D50: 5.960808698 | E50: 9.139342549
B51: 8.4 | C51: 4.20047543 | D51: 4.511017182 | E51: 9.98103306
B52: 8.6 | C52: 2.912368834 | D52: 2.494130944 | E52: 10.50653466
B53: 8.8 | C53: 0.2057941469 | D53: 0.1636993472 | E53: 10.6992
B54: 9 | C54: -2.601012498 | D54: -2.18731143 | E54: 10.55292563
B55: 9.2 | C55: -4.140997033 | D55: -4.263348133 | E55: 10.07234538
B56: 9.4 | C56: -3.664110598 | D56: -5.8034254 | E56: 9.272683541
B57: 9.6 | C57: -1.402620543 | D57: -6.613935079 | E57: 8.179272577
B58: 9.8 | C58: 1.542015293 | D58: -6.592985349 | E58: 6.826750631
B59: 10 | C59: 3.73561319 | D59: -5.743209868 | E59: 5.257964212
B60: 10.2 | C60: 4.109782158 | D60: -4.171436692 | E60: 3.52261087
B61: 10.4 | C61: 2.482283349 | D61: -2.075258567 | E61: 1.675664821
B62: 10.6 | C62: -0.3542105853 | D62: 0.2818071004 | E62: -0.2243645747
B63: 10.8 | C63: -3.018186394 | D63: 2.603445875 | E63: -2.11728633
B64: 11 | C64: -4.212155711 | D64: 4.597796954 | E64: -3.943134622
B65: 11.2 | C65: -3.354596252 | D65: 6.014143942 | E65: -5.644068445
B66: 11.4 | C66: -0.8631820138 | D66: 6.674433225 | E66: -7.166203957
B67: 11.6 | C67: 2.048644684 | D67: 6.495657678 | E67: -8.461321463
B68: 11.8 | C68: 3.962679797 | D68: 5.500291761 | E68: -9.488392966
B69: 12 | C69: 3.94669328 | D69: 3.813466178 | E69: -10.21488189
B70: 12.2 | C70: 2.008471359 | D70: 1.64723729 | E70: -10.61777382
B71: 12.4 | C71: -0.9079757436 | D71: -0.7260711849 | E71: -10.68430554
B72: 12.6 | C72: -3.382193619 | D72: -3.008102877 | E72: -10.41236939
B73: 12.8 | C73: -4.209115428 | D73: -4.911976118 | E73: -9.810580042
B74: 13 | C74: =$F$5*SIN(($C$5-$I$5)*$B74-PI()) -> -2.98598923 | D74: =$F$6*SIN(($C$6-$I$5)*$B74) -> -6.198348777 | E74: =$F$7*SIN(($C$7-$I$5)*$B74) -> -8.89800156
B75: =B74+0.2 -> 13.2 | C75: -0.3085381564 | D75: -6.705506739 | E75: -7.703543496
B76: 13.4 | C76: 2.519186304 | D76: -6.36969352 | E76: -6.265045061
B77: 13.6 | C77: 4.11994207 | D77: -5.233125295 | E77: -4.62807641
B78: 13.8 | C78: 3.714081678 | D78: -3.438683775 | E78: -2.844495036
B79: 14 | C79: 1.499279271 | D79: -1.211954072 | E79: -0.9708029712
B80: 14.2 | C80: -1.445746513 | D80: 1.167134342 | E80: 0.9336431382
B81: 14.4 | C81: -3.686622029 | D81: 3.39949848 | E81: 2.808512389
B82: 14.6 | C82: -4.131929741 | D82: 5.204500547 | E82: 4.594410841
B83: 14.8 | C83: -2.564782705 | D83: 6.355227828 | E83: 6.234763062
B84: 15 | C84: 0.2515407352 | D84: 6.707018635 | E84: 7.67760437
B85: 15.2 | C85: 2.945351359 | D85: 6.215648193 | E85: 8.877227031
B86: 15.4 | C86: 4.204629767 | D86: 4.942888289 | E86: 9.795628226
B87: 15.6 | C87: 3.416044907 | D87: 3.048741733 | E87: 10.40371395
B88: 15.8 | C88: 0.9636767239 | D88: 0.7713278825 | E88: 10.68222066
B89: 16 | C89: -1.958049827 | D89: -1.603052119 | E89: 10.62232555
B90: 16.2 | C90: -3.926108983 | D90: -3.775907195 | E90: 10.22592605
B91: 16.4 | C91: -3.981958309 | D91: -5.474080629 | E91: 9.505579674
B92: 16.6 | C92: -2.098396413 | D92: -6.484089485 | E92: 8.484106265
B93: 16.8 | C93: 0.8071886271 | D93: -6.678962245 | E93: 7.193865055
B94: 17 | C94: 3.319632765 | D94: -6.034200817 | E94: 5.675729563
B95: 17.2 | C95: 4.215251076 | D95: -4.630860271 | E95: 3.977792768
B96: 17.4 | C96: 3.057833015 | D96: -2.645359134 | E96: 2.15384357
B97: 17.6 | C97: 0.4110985911 | D97: -0.3273012491 | E97: 0.2616628125
B98: 17.8 | C98: -2.435861239 | D98: 2.031902746 | E98: -1.638807155
B99: 18 | C99: -4.096435814 | D99: 4.135669602 | E99: -3.487361389
B100: 18.2 | C100: -3.761842944 | D100: 5.719527907 | E100: -5.225439585
B101: 18.4 | C101: -1.595045953 | D101: 6.584365652 | E101: -6.797981203
B102: 18.6 | C102: 1.348617539 | D102: 6.621461258 | E102: -8.155169735
B103: 18.8 | C103: 3.635437392 | D103: 5.826151313 | E103: -9.254010837
B104: 19 | C104: 4.151618898 | D104: 4.298416833 | E104: -10.05969435
B105: 19.2 | C105: 2.64575606 | D105: 2.230314314 | E105: -10.54669704
B106: 19.4 | C106: -0.1487212228 | D106: -0.118168311 | E106: -10.69959117
B107: 19.6 | C107: -2.870763893 | D107: -2.451795611 | E107: -10.5135332
B108: 19.8 | C108: -4.194602142 | D108: -4.477199667 | E108: -9.994417256
B109: 20 | C109: -3.475461075 | D109: -5.939760309 | E109: -9.158688407

Sheet Winkelgleichheit
C2: Tabelle 1 Daten Galileischer Monde (siehe Zeitschriftenartikel )
C3: an: große Halbachse Tn: Umlaufdauer ωn: Winkelgeschwindigkeit Rn: Mondhalbmesser
C4: Jupitermond | D4: n | E4: an | F4: Tnsid | G4: Tn / T1 | H4: ωn | J4: Rn | K4: ωn - ωP | L4: bn = RJ
E5: (103 km) | F5: (d) | H5: (d-1) | I5: (min-1) | J5: (km) | K5: (min-1) | L5: + Rn (km)
C6: Io | D6: 1 | E6: 421.67 | F6: 1.769137 | G6: =F6/$F$6 -> 1 | H6: =2*PI()/F6 -> 3.551553841 | I6: =2*PI()/(F6*24*60) -> 0.002466356834 | J6: 1821 | K6: =I6-$F$9 -> 0.002475322112 | L6: =$L$9+J6 -> 73313
C7: Europa | D7: =D6+1 -> 2 | E7: 670.9 | F7: 3.551182 | G7: =F7/$F$6 -> 2.007296213 | H7: =2*PI()/F7 -> 1.769322245 | I7: =2*PI()/(F7*24*60) -> 0.001228696003 | J7: 1565 | K7: =I7-$F$9 -> 0.001237661281 | L7: =$L$9+J7 -> 73057
C8: Ganymed | D8: =D7+1 -> 3 | E8: 1070 | F8: 7.154554 | G8: =F8/$F$6 -> 4.044092685 | H8: =2*PI()/F8 -> 0.878207825 | I8: =2*PI()/(F8*24*60) -> 0.0006098665451 | J8: 2634 | K8: =I8-$F$9 -> 0.0006188318229 | L8: =$L$9+J8 -> 74126
C9: ωP = | D9: -0.01291 | E9: d-1 = | F9: =D9/(24*60) -> -8.965277778e-06 | G9: min-1 | H9: Äquatorradius Jupiter: | K9: RJ = | L9: 71492 | M9: km
C10: 2:58 Uhr: 1 BA 2:43 Uhr: 2 DA 2:24 Uhr: 3 DA (MEZ, am 27.08.09)
B12: t (min) | C12: ϕ1 | D12: ϕ2 | E12: ϕ3 | F12: 2009-08-27 | H12: 3 DA: | I12: 02:24:00 | K12: Jupiter-Opposition am 14.08.09
B13: 0 | E13: =$L$8/($E$8*1000) -> 0.06927663551 | H13: + 102 min: | I13: =I12+(1+42/60)/24 -> 04:06:00 | J13: (Uhrzeit für Gleichheit der Winkel)
B14: =B13+1 -> 1 | E14: =$E$13-$K$8*(B14-$B$13) -> 0.06865780369
B15: =B14+1 -> 2 | E15: 0.06803897187
B16: 3 | E16: 0.06742014005
B17: 4 | E17: 0.06680130822
B18: 5 | E18: 0.0661824764
B19: 6 | E19: 0.06556364458
B20: 7 | E20: 0.06494481275
B21: 8 | E21: 0.06432598093
B22: 9 | E22: 0.06370714911
B23: 10 | E23: 0.06308831728
B24: 11 | E24: 0.06246948546
B25: 12 | E25: 0.06185065364
B26: 13 | E26: 0.06123182182
B27: 14 | E27: 0.06061298999
B28: 15 | E28: 0.05999415817
B29: 16 | E29: 0.05937532635
B30: 17 | E30: 0.05875649452
B31: 18 | E31: 0.0581376627
B32: 19 | D32: =$L$7/($E$7*1000) -> 0.108894023 | E32: 0.05751883088
B33: 20 | D33: =$D$32-$K$7*(B33-$B$32) -> 0.1076563617 | E33: 0.05689999906
B34: 21 | D34: 0.1064187004 | E34: 0.05628116723
B35: 22 | D35: 0.1051810391 | E35: 0.05566233541
B36: 23 | D36: 0.1039433778 | E36: 0.05504350359
B37: 24 | D37: 0.1027057165 | E37: 0.05442467176
B38: 25 | D38: 0.1014680553 | E38: 0.05380583994
B39: 26 | D39: 0.100230394 | E39: 0.05318700812
B40: 27 | D40: 0.09899273271 | E40: 0.0525681763
B41: 28 | D41: 0.09775507143 | E41: 0.05194934447
B42: 29 | D42: 0.09651741014 | E42: 0.05133051265
B43: 30 | D43: 0.09527974886 | E43: 0.05071168083
B44: 31 | D44: 0.09404208758 | E44: 0.050092849
B45: 32 | D45: 0.0928044263 | E45: 0.04947401718
B46: 33 | D46: 0.09156676502 | E46: =$E$13-$K$8*(B46-$B$13) -> 0.04885518536
B47: 34 | C47: =$L$6/($E$6*1000) -> 0.1738634477 | D47: 0.09032910374 | E47: 0.04823635353
B48: 35 | C48: =$C$47-$K$6*(B48-$B$47) -> 0.1713881256 | D48: 0.08909144246 | E48: 0.04761752171
B49: 36 | C49: 0.1689128035 | D49: 0.08785378118 | E49: 0.04699868989
B50: 37 | C50: 0.1664374814 | D50: 0.0866161199 | E50: 0.04637985807
B51: 38 | C51: 0.1639621593 | D51: 0.08537845862 | E51: 0.04576102624
B52: 39 | C52: 0.1614868372 | D52: 0.08414079733 | E52: 0.04514219442
B53: 40 | C53: 0.159011515 | D53: 0.08290313605 | E53: 0.0445233626
B54: 41 | C54: 0.1565361929 | D54: 0.08166547477 | E54: 0.04390453077
B55: 42 | C55: 0.1540608708 | D55: 0.08042781349 | E55: 0.04328569895
B56: 43 | C56: 0.1515855487 | D56: 0.07919015221 | E56: 0.04266686713
B57: 44 | C57: 0.1491102266 | D57: 0.07795249093 | E57: 0.04204803531
B58: 45 | C58: 0.1466349045 | D58: 0.07671482965 | E58: 0.04142920348
B59: 46 | C59: 0.1441595824 | D59: 0.07547716837 | E59: 0.04081037166
B60: 47 | C60: 0.1416842603 | D60: 0.07423950709 | E60: 0.04019153984
B61: 48 | C61: 0.1392089382 | D61: 0.07300184581 | E61: 0.03957270801
B62: 49 | C62: 0.136733616 | D62: 0.07176418453 | E62: 0.03895387619
B63: 50 | C63: 0.1342582939 | D63: 0.07052652324 | E63: 0.03833504437
B64: 51 | C64: 0.1317829718 | D64: 0.06928886196 | E64: 0.03771621255
B65: 52 | C65: 0.1293076497 | D65: =$D$32-$K$7*(B65-$B$32) -> 0.06805120068 | E65: 0.03709738072
B66: 53 | C66: 0.1268323276 | D66: 0.0668135394 | E66: 0.0364785489
B67: 54 | C67: 0.1243570055 | D67: 0.06557587812 | E67: 0.03585971708
B68: 55 | C68: 0.1218816834 | D68: 0.06433821684 | E68: 0.03524088525
B69: 56 | C69: 0.1194063613 | D69: 0.06310055556 | E69: 0.03462205343
B70: 57 | C70: 0.1169310392 | D70: 0.06186289428 | E70: 0.03400322161
B71: 58 | C71: 0.114455717 | D71: 0.060625233 | E71: 0.03338438978
B72: 59 | C72: 0.1119803949 | D72: 0.05938757172 | E72: 0.03276555796
B73: 60 | C73: 0.1095050728 | D73: 0.05814991043 | E73: 0.03214672614
B74: 61 | C74: 0.1070297507 | D74: 0.05691224915 | E74: 0.03152789432
B75: 62 | C75: 0.1045544286 | D75: 0.05567458787 | E75: 0.03090906249
B76: 63 | C76: 0.1020791065 | D76: 0.05443692659 | E76: 0.03029023067
B77: 64 | C77: 0.09960378437 | D77: 0.05319926531 | E77: 0.02967139885
B78: 65 | C78: 0.09712846226 | D78: 0.05196160403 | E78: =$E$13-$K$8*(B78-$B$13) -> 0.02905256702
B79: =B78+1 -> 66 | C79: 0.09465314015 | D79: 0.05072394275 | E79: 0.0284337352
B80: 67 | C80: =$C$47-$K$6*(B80-$B$47) -> 0.09217781804 | D80: 0.04948628147 | E80: 0.02781490338
B81: 68 | C81: 0.08970249592 | D81: 0.04824862019 | E81: 0.02719607156
B82: 69 | C82: 0.08722717381 | D82: 0.04701095891 | E82: 0.02657723973
B83: 70 | C83: 0.0847518517 | D83: 0.04577329763 | E83: 0.02595840791
B84: 71 | C84: 0.08227652959 | D84: 0.04453563634 | E84: 0.02533957609
B85: 72 | C85: 0.07980120748 | D85: 0.04329797506 | E85: 0.02472074426
B86: 73 | C86: 0.07732588537 | D86: 0.04206031378 | E86: 0.02410191244
B87: 74 | C87: 0.07485056325 | D87: 0.0408226525 | E87: 0.02348308062
B88: 75 | C88: 0.07237524114 | D88: 0.03958499122 | E88: 0.0228642488
B89: 76 | C89: 0.06989991903 | D89: 0.03834732994 | E89: 0.02224541697
B90: 77 | C90: 0.06742459692 | D90: 0.03710966866 | E90: 0.02162658515
B91: 78 | C91: 0.06494927481 | D91: 0.03587200738 | E91: 0.02100775333
B92: 79 | C92: 0.0624739527 | D92: 0.0346343461 | E92: 0.0203889215
B93: 80 | C93: 0.05999863058 | D93: 0.03339668482 | E93: 0.01977008968
B94: 81 | C94: 0.05752330847 | D94: 0.03215902353 | E94: 0.01915125786
B95: 82 | C95: 0.05504798636 | D95: 0.03092136225 | E95: 0.01853242603
B96: 83 | C96: 0.05257266425 | D96: 0.02968370097 | E96: 0.01791359421
B97: 84 | C97: 0.05009734214 | D97: =$D$32-$K$7*(B97-$B$32) -> 0.02844603969 | E97: 0.01729476239
B98: 85 | C98: 0.04762202003 | D98: 0.02720837841 | E98: 0.01667593057
B99: 86 | C99: 0.04514669791 | D99: 0.02597071713 | E99: 0.01605709874
B100: 87 | C100: 0.0426713758 | D100: 0.02473305585 | E100: 0.01543826692
B101: 88 | C101: 0.04019605369 | D101: 0.02349539457 | E101: 0.0148194351
B102: 89 | C102: 0.03772073158 | D102: 0.02225773329 | E102: 0.01420060327
B103: 90 | C103: 0.03524540947 | D103: 0.02102007201 | E103: 0.01358177145
B104: 91 | C104: 0.03277008736 | D104: 0.01978241072 | E104: 0.01296293963
B105: 92 | C105: 0.03029476524 | D105: 0.01854474944 | E105: 0.01234410781
B106: 93 | C106: 0.02781944313 | D106: 0.01730708816 | E106: 0.01172527598
B107: 94 | C107: 0.02534412102 | D107: 0.01606942688 | E107: 0.01110644416
B108: 95 | C108: 0.02286879891 | D108: 0.0148317656 | E108: 0.01048761234
B109: 96 | C109: 0.0203934768 | D109: 0.01359410432 | E109: 0.009868780514
B110: 97 | C110: 0.01791815469 | D110: 0.01235644304 | E110: =$E$13-$K$8*(B110-$B$13) -> 0.009249948691
B111: 98 | C111: 0.01544283257 | D111: 0.01111878176 | E111: 0.008631116868
B112: 99 | C112: =$C$47-$K$6*(B112-$B$47) -> 0.01296751046 | D112: 0.009881120477 | E112: 0.008012285045
B113: 100 | C113: 0.01049218835 | D113: 0.008643459196 | E113: 0.007393453222
B114: 101 | C114: 0.00801686624 | D114: 0.007405797915 | E114: 0.006774621399
B115: 101.65 | C115: 0.006407906867 | D115: 0.006601318083 | E115: 0.006372380715 | F115: rund 102 min nach "3 DA" in etwa
B116: 103 | C116: 0.003066222017 | D116: 0.004930475353 | E116: 0.005536957754 | F116: gleiche Winkelbeträge φi ≈ 0,0065 rad
B117: 104 | C117: 0.0005908999051 | D117: 0.003692814072 | E117: 0.004918125931 | G117: ≈ | H117: =0.0065*180/PI() -> 0.3724225668 | I117: °
B118: 105 | C118: -0.001884422207 | D118: 0.002455152791 | E118: 0.004299294108
B119: 106 | C119: -0.004359744318 | D119: 0.00121749151 | E119: 0.003680462285
B120: 107 | C120: -0.00683506643 | D120: -2.016977057e-05 | E120: 0.003061630462
B121: 108 | C121: -0.009310388541 | D121: -0.001257831052 | E121: 0.002442798639
B122: 109 | C122: -0.01178571065 | D122: -0.002495492332 | E122: 0.001823966816
B123: 110 | C123: -0.01426103276 | D123: -0.003733153613 | E123: 0.001205134993
B124: 111 | C124: -0.01673635488 | D124: -0.004970814894 | E124: 0.0005863031703
B125: 112 | C125: -0.01921167699 | D125: -0.006208476175 | E125: -3.252865259e-05
B126: 113 | C126: -0.0216869991 | D126: -0.007446137456 | E126: -0.0006513604755
B127: 114 | C127: -0.02416232121 | D127: -0.008683798737 | E127: -0.001270192298
B128: 115 | C128: -0.02663764332 | D128: -0.009921460018 | E128: -0.001889024121
B129: 116 | C129: -0.02911296543 | D129: -0.0111591213 | E129: -0.002507855944
B130: 117 | C130: -0.03158828755 | D130: -0.01239678258 | E130: -0.003126687767
B131: 118 | C131: -0.03406360966 | D131: -0.01363444386 | E131: -0.00374551959
B132: 119 | C132: -0.03653893177 | D132: -0.01487210514 | E132: -0.004364351413
B133: 120 | C133: -0.03901425388 | D133: -0.01610976642 | E133: -0.004983183236

Sheet Tab.1, Diagr. 2
B1: A | C1: B | D1: C | E1: D | F1: E | G1: F | H1: G | I1: H | J1: I | K1: J | L1: K | M1: L | N1: M | O1: N
A2: 1 | B2: Tabelle 1 Bahnelemente der Galileischen Monde und abgeleitete Größen | Q2: n | R2: φ1 | S2: φ1 / π | U2: n | V2: φ2 | W2: φ2 / π | X2: n | Y2: φ3 | Z2: φ3 / π
A3: =A2+1 -> 2 | C3: a: große Halbachse T: Umlaufdauer ω: mittlere Winkelgeschwindigkeit | Q3: 0 | R3: =Q3*$N$6+PI() -> 3.141592654 | S3: =R3/PI() -> 1 | U3: 0 | V3: =U3*$N$7 -> 0 | W3: =V3/PI() -> 0 | X3: 0 | Y3: =X3*$N$8 -> 0 | Z3: =Y3/PI() -> 0
A4: =A3+1 -> 3 | C4: Jupitermond | D4: n | E4: an | F4: Tn (d) | G4: Tn / T1 | H4: Ex- | I4: relative | J4: ωn | N4: ωn - ωP | O4: (ω1 - ωP)/ | Q4: =1/8 -> 0.125 | R4: =Q4*$N$10*$N$6+PI() -> 6.283178733 | S4: 1.999997907 | U4: =1/2 -> 0.5 | V4: =U4*$N$10*$N$7 -> 6.283173302 | W4: 1.999996178 | X4: =1 -> 1 | Y4: =$N$10*$N$8 -> 6.283185307 | Z4: 2
A5: 4 | E5: (103 km) | F5: siderisch | H5: zentrizität | I5: Masse | J5: (d-1) | N5: (d-1) | O5: (ωn - ωP) | Q5: =Q4 -> 0.125 | R5: =0 -> 0 | S5: 0 | U5: =U4 -> 0.5 | V5: =0 -> 0 | W5: 0 | X5: =X4 -> 1 | Y5: 0 | Z5: 0
A6: =A4+1 -> 4 | C6: Io | D6: 1 | E6: 421.67 | F6: 1.769137 | G6: =F6/$F$6 -> 1 | H6: 0.0041 | I6: 4.7e-05 | J6: =2*PI()/F6 -> 3.551553841 | K6: ω1 - 2ω2 = | L6: =2*PI()/F6-4*PI()/F7 -> 0.01290935158 | M6: d-1 | N6: =J6-$L$10 -> 3.564463841 | O6: =$N$6/N6 -> 1 | Q6: =Q5+1/4 -> 0.375 | R6: =Q6*$N$10*$N$6+PI()-2*PI() -> 6.283165584 | S6: 1.999993722 | U6: =U5+U4 -> 1 | V6: =U6*$N$10*$N$7-2*PI() -> 6.283161296 | W6: 1.999992357 | X6: =X5+X4 -> 2 | Y6: =X6*$N$10*$N$8-2*PI() -> 6.283185307 | Z6: 2
A7: =A6+1 -> 5 | C7: Europa | D7: =D6+1 -> 2 | E7: 670.9 | F7: 3.551182 | G7: =F7/$F$6 -> 2.007296213 | H7: 0.0101 | I7: 2.5e-05 | J7: =2*PI()/F7 -> 1.769322245 | K7: ω2 - 2ω3 = | L7: =2*PI()/F7-4*PI()/F8 -> 0.01290659459 | M7: d-1 | N7: =J7-$L$10 -> 1.782232245 | O7: =$N$6/N7 -> 1.999999636 | Q7: =Q6 -> 0.375 | R7: =0 -> 0 | S7: 0 | U7: =U6 -> 1 | V7: =0 -> 0 | W7: 0 | X7: =X6 -> 2 | Y7: 0 | Z7: 0
A8: =A7+1 -> 6 | C8: Ganymed | D8: =D7+1 -> 3 | E8: 1070 | F8: 7.154554 | G8: =F8/$F$6 -> 4.044092685 | H8: 0.0006 | I8: 7.8e-05 | J8: =2*PI()/F8 -> 0.878207825 | K8: ω1 – 3ω2+ 2ω3 = | L8: =2*PI()/F6-6*PI()/F7+4*PI()/F8 -> 2.75699466e-06 | M8: d-1 | N8: =J8-$L$10 -> 0.891117825 | O8: =$N$6/N8 -> 3.999991629 | Q8: =Q7+1/4 -> 0.625 | R8: =Q8*$N$10*$N$6+PI()-4*PI() -> 6.283152436 | S8: 1.999989537 | U8: =U7+$U$5 -> 1.5 | V8: =U8*$N$10*$N$7-4*PI() -> 6.28314929 | W8: 1.999988535 | X8: =1/6 -> 0.1666666667 | Y8: =X8*$N$10*$N$8 -> 1.047197551 | Z8: 0.3333333333
A9: =A8+1 -> 7 | C9: Callisto | D9: =D8+1 -> 4 | E9: 1883 | F9: 16.68902 | G9: =F9/$F$6 -> 9.433424319 | H9: 0.007 | I9: 5.7e-05 | J9: =2*PI()/F9 -> 0.3764861752 | K9: 3ω3 – 7ω4 = | L9: =6*PI()/F8-14*PI()/F9 -> -0.0007797512107 | M9: d-1 | N9: Trep = | O9: 2π /(ω3 - ωP) = | Q9: =Q8 -> 0.625 | R9: =0 -> 0 | S9: 0 | U9: =U8 -> 1.5 | V9: =0 -> 0 | W9: 0 | X9: =1/2 -> 0.5 | Y9: =X9*$N$10*$N$8 -> 3.141592654 | Z9: 1
A10: =A9+1 -> 8 | C10: Äquatorradius Jupiter: 71492 km | F10: 7 T3 / 3 T4 | G10: ≈ | H10: =7*F8/(3*F9) -> 1.000295963 | I10: (bez. auf Jupiter) | J10: ωP = | K10: - (ω1 - 2ω2) = | L10: -0.01291 | M10: d-1 | N10: =2*PI()/$N$8 -> 7.050902957 | O10: d | Q10: =Q9+1/4 -> 0.875 | R10: =Q10*$N$10*$N$6+PI()-6*PI() -> 6.283139287 | S10: 1.999985351 | U10: =U9+$U$5 -> 2 | V10: =U10*$N$10*$N$7-6*PI() -> 6.283137285 | W10: 1.999984714 | X10: =5*1/6 -> 0.8333333333 | Y10: =X10*$N$10*$N$8 -> 5.235987756 | Z10: 1.666666667
A11: 9 | C11: Mondradien: | F11: R1 = | G11: 1821 | H11: km, R2 = | I11: 1565 | J11: km, | K11: R3 = | L11: 2634 | M11: km | Q11: =Q10 -> 0.875 | R11: =0 -> 0 | S11: 0 | U11: =U10 -> 2 | V11: =0 -> 0 | W11: 0 | X11: =7*1/6 -> 1.166666667 | Y11: =X11*$N$10*$N$8-2*PI() -> 1.047197551 | Z11: 0.3333333333
Q12: =Q11+1/4 -> 1.125 | R12: =Q12*$N$10*$N$6+PI()-8*PI() -> 6.283126139 | S12: 1.999981166 | U12: 0 | V12: 0 | W12: 0 | Y12: Konj. 1, 3
Q13: =Q12 -> 1.125 | R13: =0 -> 0 | S13: 0 | U13: 1 | V13: 0 | W13: 0
Q14: =Q13+1/4 -> 1.375 | R14: =Q14*$N$10*$N$6+PI()-10*PI() -> 6.28311299 | S14: 1.999976981 | U14: Konj. 2, 3
Q15: =Q14 -> 1.375 | R15: =0 -> 0 | S15: 0
Q16: =Q15+1/4 -> 1.625 | R16: =Q16*$N$10*$N$6+PI()-12*PI() -> 6.283099841 | S16: 1.999972795 | U16: Für Diagramm 2
Q17: =Q16 -> 1.625 | R17: =0 -> 0 | S17: 0
Q18: =Q17+1/4 -> 1.875 | R18: =Q18*$N$10*$N$6+PI()-14*PI() -> 6.283086693 | S18: 1.99996861 | U18: (drehendes | V18: System)
Q19: =Q18 -> 1.875 | R19: =0 -> 0 | S19: 0
Q20: =1/4 -> 0.25 | R20: =Q20*$N$10*$N$6+PI()-2*PI() -> 3.141579505 | S20: 0.9999958147 | U20: Konj. 1, 2
Q21: =3*1/4 -> 0.75 | R21: =Q21*$N$10*$N$6+PI()-6*PI() -> 3.141553208 | S21: 0.999987444
Q22: =5*1/4 -> 1.25 | R22: =Q22*$N$10*$N$6+PI()-10*PI() -> 3.141526911 | S22: 0.9999790734
D41: Linien x = 5 / 6 und y = 5 / 3 | H41: Linien x = 1 / 6 und y = 1 / 3 | N41: Linie x = 1 (Trep)
E42: =5/6 -> 0.8333333333 | F42: 0 | H42: =1/6 -> 0.1666666667 | I42: 0 | N42: 1 | O42: 0
E43: =5/6 -> 0.8333333333 | F43: =5/3 -> 1.666666667 | H43: =1/6 -> 0.1666666667 | I43: =1/3 -> 0.3333333333 | N43: 1 | O43: 2
E44: 0 | F44: =5/3 -> 1.666666667 | H44: 0 | I44: =1/3 -> 0.3333333333
